fUST/lending_fUST_20250726
["ID","MTS","AMOUNT","RATE_DAILY","PERIOD"]
[374939379,1753473038366,-454.80439259,0.00019889,2]
[374939381,1753473038376,-500.0,0.00019889,2]
[374939383,1753473038386,-500.0,0.00019889,2]
[374939385,1753473038395,-500.0,0.00019889,2]
[374939387,1753473038404,-19.84193428,0.00019889,2]
[374939389,1753473038416,-480.15806572,0.00019889,2]
[374939391,1753473038425,-500.0,0.00019889,2]
[374939394,1753473038438,-201.01084126,0.00019898,2]
[374939396,1753473038447,-427.23785156,0.00019898,2]
[374939398,1753473038456,-460.0,0.00019898,2]
[374939400,1753473038466,-462.24193882,0.00019898,2]
[374939402,1753473038475,-460.0,0.00019898,2]
[374939404,1753473038485,-460.0,0.00019898,2]
[374939405,1753473038495,-460.0,0.00019898,2]
[374939408,1753473038505,-460.0,0.00019898,2]
[374939410,1753473038515,-460.0,0.00019898,2]
[374939411,1753473038525,-460.0,0.00019898,2]
[374939413,1753473038534,-460.0,0.00019898,2]
[374939415,1753473038544,-460.0,0.00019898,2]
[374939418,1753473038554,-460.0,0.00019898,2]
[374939420,1753473038564,-577.80975664,0.00019898,2]
[374939422,1753473038573,-460.0,0.00019898,2]
[374939424,1753473038584,-460.0,0.00019898,2]
[374939426,1753473038593,-460.0,0.00019898,2]
[374939427,1753473038603,-460.0,0.00019898,2]
[374939429,1753473038612,-460.0,0.00019898,2]
[374939432,1753473038622,-500.0,0.00019898,2]
[374939434,1753473038633,-460.0,0.00019898,2]
[374939435,1753473038644,-460.0,0.00019898,2]
[374939437,1753473038654,-460.0,0.00019898,2]
[374939439,1753473038664,-460.0,0.00019898,2]
[374939442,1753473038674,-460.0,0.00019898,2]
[374939443,1753473038685,-460.0,0.00019898,2]
[374939446,1753473038694,-460.0,0.00019898,2]
[374939448,1753473038704,-460.0,0.00019898,2]
[374939449,1753473038714,-460.0,0.00019898,2]
[374939450,1753473038723,-460.0,0.00019898,2]
[374939451,1753473038732,-460.0,0.00019898,2]
[374939452,1753473038741,-460.0,0.00019898,2]
[374939453,1753473038750,-518.18505277,0.00019898,2]
[374939454,1753473038760,-464.41309192,0.00019898,2]
[374939455,1753473038769,-460.0,0.00019898,2]
[374939456,1753473038778,-460.0,0.00019898,2]
[374939457,1753473038788,-460.0,0.00019898,2]
[374939458,1753473038797,-460.0,0.00019898,2]
[374939459,1753473038807,-460.0,0.00019898,2]
[374939460,1753473038816,-460.0,0.00019898,2]
[374939461,1753473038825,-460.0,0.00019898,2]
[374939462,1753473038834,-460.0,0.00019898,2]
[374939463,1753473038843,-460.0,0.00019898,2]
[374939464,1753473038852,-460.0,0.00019898,2]
[374939465,1753473038861,-460.68007182,0.00019898,2]
[374939466,1753473038871,-461.76265842,0.00019898,2]
[374939467,1753473038880,-460.0,0.00019898,2]
[374939468,1753473038890,-460.0,0.00019898,2]
[374939469,1753473038900,-561.25388855,0.00019898,2]
[374939471,1753473038909,-460.0,0.00019898,2]
[374939473,1753473038919,-460.0,0.00019898,2]
[374939475,1753473038928,-460.0,0.00019898,2]
[374939477,1753473038940,-460.0,0.00019898,2]
[374939479,1753473038949,-460.0,0.00019898,2]
[374939481,1753473038959,-460.0,0.00019898,2]
[374939483,1753473038968,-460.0,0.00019898,2]
[374939485,1753473038978,-460.0,0.00019898,2]
[374939487,1753473038987,-460.0,0.00019898,2]
[374939489,1753473038997,-460.0,0.00019898,2]
[374939491,1753473039006,-460.0,0.00019898,2]
[374939493,1753473039016,-460.0,0.00019898,2]
[374939495,1753473039026,-460.0,0.00019898,2]
[374939497,1753473039035,-460.0,0.00019898,2]
[374939499,1753473039045,-460.0,0.00019898,2]
[374939501,1753473039055,-464.97307931,0.00019898,2]
[374939503,1753473039064,-162.80052599,0.00019898,2]
[374939505,1753473039073,-460.0,0.00019898,2]
[374939507,1753473039083,-540.73078974,0.00019898,2]
[374939509,1753473039095,-460.0,0.00019898,2]
[374939511,1753473039105,-460.0,0.00019898,2]
[374939513,1753473039115,-460.0,0.00019898,2]
[374939515,1753473039124,-460.0,0.00019898,2]
[374939517,1753473039134,-460.0,0.00019898,2]
[374939519,1753473039146,-569.17232701,0.00019898,2]
[374939521,1753473039156,-460.0,0.00019898,2]
[374939523,1753473039165,-460.0,0.00019898,2]
[374939525,1753473039175,-460.0,0.00019899,2]
[374939527,1753473039189,-460.0,0.00019899,2]
[374939529,1753473039198,-460.0,0.00019899,2]
[374939531,1753473039207,-460.0,0.00019899,2]
[374939533,1753473039217,-460.0,0.00019899,2]
[374939535,1753473039227,-460.0,0.00019899,2]
[374939537,1753473039237,-460.0,0.00019899,2]
[374939539,1753473039246,-25000.0,0.00020056,2]
[374939541,1753473039256,-151.0,0.00020056,2]
[374939543,1753473039266,-19042.51828975,0.00020056,2]
[374939545,1753473039276,-151.0,0.00020056,2]
[374939547,1753473039285,-151.0,0.00020056,2]
[374939549,1753473039295,-215.0738,0.00020056,2]
[374939551,1753473039304,-3801.642,0.00020056,2]
[374939553,1753473039314,-309.18,0.00020056,2]
[374939555,1753473039324,-460.0,0.00020171,2]
[374939557,1753473039334,-596.17332895,0.00020172,2]
[374939560,1753473039345,-460.55102247,0.00020172,2]
[374939562,1753473039355,-175.69,0.00020172,2]
[374939564,1753473039365,-460.0,0.00020172,2]
[374939565,1753473039374,-460.0,0.00020172,2]
[374939568,1753473039384,-460.0,0.00020172,2]
[374939570,1753473039395,-460.0,0.00020172,2]
[374939572,1753473039405,-460.0,0.00020173,2]
[374939574,1753473039414,-256.1,0.00020173,2]
[374939576,1753473039424,-460.0,0.00020173,2]
[374939578,1753473039435,-460.0,0.00020173,2]
[374939580,1753473039445,-460.0,0.00020173,2]
[374939582,1753473039455,-352.23015,0.00020187,2]
[374939599,1753473039606,-460.0,0.00020445,2]
[374939601,1753473039616,-460.0,0.00020446,2]
[374939603,1753473039626,-460.0,0.00020446,2]
[374939605,1753473039636,-460.0,0.00020446,2]
[374939607,1753473039646,-294.33,0.00020446,2]
[374939609,1753473039655,-460.0,0.00020447,2]
[374939611,1753473039665,-460.0,0.00020447,2]
[374939613,1753473039675,-460.0,0.00020447,2]
[374939615,1753473039687,-460.0,0.00020447,2]
[374939617,1753473039696,-4651.46,0.00020711,10]
[374939619,1753473039706,-460.0,0.00020719,2]
[374939621,1753473039715,-460.0,0.0002072,2]
[374939623,1753473039726,-460.0,0.0002072,2]
[374939625,1753473039735,-460.0,0.0002072,2]
[374939627,1753473039745,-460.0,0.00020721,2]
[374939629,1753473039755,-460.0,0.00020721,2]
[374939631,1753473039764,-149.20462491,0.00020721,2]
[374939633,1753473039779,-310.79537509,0.00020721,2]
[374939635,1753473039790,-460.0,0.00020721,2]
[374939637,1753473039800,-460.0,0.00020977,2]
[374939639,1753473039810,-460.0,0.00020977,2]
[374939641,1753473039821,-460.0,0.00020977,2]
[374939643,1753473039830,-460.0,0.00020977,2]
[374939645,1753473039840,-850.62,0.00020977,2]
[374939647,1753473039850,-460.0,0.00020977,2]
[374939650,1753473039859,-460.0,0.00020977,2]
[374939652,1753473039868,-6133.76544055,0.00020983,2]
[374939654,1753473039880,-6493.47592355,0.00020983,2]
[374939656,1753473039889,-160.0,0.00020983,2]
[374939658,1753473039900,-460.0,0.00020993,2]
[374939660,1753473039910,-460.0,0.00020994,2]
[374939662,1753473039918,-460.0,0.00020994,2]
[374939664,1753473039928,-227.66,0.00020994,2]
[374939666,1753473039940,-460.0,0.00020995,2]
[374939668,1753473039950,-460.0,0.00020995,2]
[374939670,1753473039960,-460.0,0.00020995,2]
[374939672,1753473039970,-460.0,0.00020995,2]
[374939674,1753473039980,-500.0,0.00021064,2]
[374939676,1753473039990,-401.493,0.00021213,2]
[374939678,1753473040001,-460.0,0.00021251,2]
[374939680,1753473040010,-460.0,0.00021251,2]
[374939682,1753473040020,-850.62,0.00021251,2]
[374939684,1753473040029,-460.0,0.00021251,2]
[374939686,1753473040039,-460.0,0.00021251,2]
[374939688,1753473040048,-460.0,0.00021267,2]
[374939690,1753473040057,-460.0,0.00021268,2]
[374939692,1753473040067,-460.0,0.00021268,2]
[374939694,1753473040076,-460.0,0.00021269,2]
[374939696,1753473040086,-460.0,0.00021269,2]
[374939698,1753473040096,-460.0,0.00021269,2]
[374939700,1753473040109,-460.0,0.00021269,2]
[374939702,1753473040119,-223.0315306,0.00021425,2]
[374939704,1753473040129,-163.14,0.00021525,2]
[374939706,1753473040139,-460.0,0.00021525,2]
[374939708,1753473040149,-850.62,0.00021525,2]
[374939710,1753473040159,-460.0,0.00021525,2]
[374939713,1753473040169,-460.0,0.00021525,2]
[374939714,1753473040181,-460.0,0.00021541,2]
[374939716,1753473040192,-460.0,0.00021542,2]
[374939719,1753473040203,-483.45,0.00021542,2]
[374939720,1753473040212,-460.0,0.00021543,2]
[374939722,1753473040222,-460.0,0.00021543,2]
[374939724,1753473040232,-460.0,0.00021543,2]
[374939726,1753473040242,-460.0,0.00021543,2]
[374939728,1753473040251,-558.81630607,0.00021742,2]
[374939730,1753473040261,-312.16666667,0.00021777,10]
[374939732,1753473040271,-457.19,0.00021793,3]
[374939734,1753473040281,-460.0,0.00021799,2]
[374939736,1753473040291,-850.62,0.00021799,2]
[374939738,1753473040301,-460.0,0.00021799,2]
[374939740,1753473040310,-460.0,0.00021799,2]
[374939742,1753473040319,-152.39,0.00021803,3]
[374939744,1753473040328,-460.0,0.00021813,2]
[374939746,1753473040338,-460.0,0.00021813,2]
[374939748,1753473040347,-460.0,0.00021813,2]
[374939750,1753473040357,-483.29,0.00021813,2]
[374939752,1753473040366,-431.76398239,0.00021813,2]
[374939754,1753473040376,-575.52332548,0.00021813,2]
[374939756,1753473040385,-460.0,0.00021813,2]
[374939758,1753473040394,-460.0,0.00021815,2]
[374939760,1753473040404,-460.0,0.00021816,2]
[374939762,1753473040414,-460.0,0.00021817,2]
[374939764,1753473040423,-460.0,0.00021817,2]
[374939767,1753473040434,-304.14447334,0.00021817,2]
[374939769,1753473040443,-460.0,0.00021817,2]
[374939770,1753473040452,-618.36,0.00021879,2]
[374939772,1753473040462,-765.1,0.00022,7]
[374939775,1753473040472,-460.0,0.00022073,2]
[374939776,1753473040481,-850.62,0.00022073,2]
[374939779,1753473040491,-460.0,0.00022073,2]
[374939781,1753473040500,-460.0,0.00022073,2]
[374939782,1753473040509,-179.64590173,0.00022086,2]
[374939785,1753473040519,-439.0,0.00022089,2]
[374939787,1753473040529,-281.78089101,0.0002209,2]
[374939789,1753473040541,-178.21910899,0.0002209,2]
[374939791,1753473040550,-460.0,0.00022091,2]
[374939793,1753473040559,-460.0,0.00022091,2]
[374939794,1753473040567,-460.0,0.00022091,2]
[374939796,1753473040577,-460.0,0.00022347,2]
[374939798,1753473040586,-850.62,0.00022347,2]
[374939800,1753473040597,-460.0,0.00022347,2]
[374939802,1753473040607,-460.0,0.00022347,2]
[374939804,1753473040616,-460.0,0.00022364,2]
[374939806,1753473040626,-460.0,0.00022365,2]
[374939809,1753473040636,-460.0,0.00022365,2]
[374939810,1753473040645,-460.0,0.00022365,2]
[374939812,1753473040655,-594.79640088,0.00022373,2]
[374939814,1753473040664,-1435.48,0.00022465,2]
[374939816,1753473040674,-460.0,0.00022621,2]
[374939818,1753473040684,-850.62,0.00022621,2]
[374939821,1753473040694,-399.11977687,0.00022621,2]
[374939823,1753473040703,-267.05743507,0.00022621,2]
[374939824,1753473040712,-460.0,0.00022638,2]
[374939827,1753473040721,-460.0,0.00022639,2]
[374939828,1753473040731,-460.0,0.00022639,2]
[374939831,1753473040741,-460.0,0.00022639,2]
[374939833,1753473040751,-231.28369723,0.00022794,2]
[374939835,1753473040759,-648.0,0.00022798,2]
[374939836,1753473040769,-2157.0,0.00022798,2]
[374939839,1753473040779,-407.0,0.00022798,2]
[374939841,1753473040788,-969.0,0.00022798,2]
[374939842,1753473040797,-460.0,0.00022895,2]
[374939844,1753473040807,-850.62,0.00022895,2]
[374939846,1753473040816,-460.0,0.00022912,2]
[374939848,1753473040826,-460.0,0.00022913,2]
[374939850,1753473040835,-460.0,0.00022913,2]
[374939852,1753473040844,-460.0,0.00022913,2]
[374939854,1753473040854,-266.05,0.00023,2]
[374939857,1753473040864,-460.0,0.00023169,2]
[374939858,1753473040873,-850.62,0.00023169,2]
[374939860,1753473040882,-304.78,0.00023173,3]
[374939862,1753473040891,-460.0,0.00023186,2]
[374939864,1753473040901,-460.0,0.00023187,2]
[374939866,1753473040910,-460.0,0.00023187,2]
[374939868,1753473040919,-460.0,0.00023187,2]
[374939870,1753473040928,-500.0,0.0002324,2]
[374939872,1753473040938,-500.0,0.0002324,2]
[374939874,1753473040947,-500.0,0.0002324,2]
[374939876,1753473040956,-156.64231511,0.0002324,2]
[374939878,1753473040966,-177.54006262,0.00023256,2]
[374939880,1753473040976,-500.0,0.00023357,2]
[374939882,1753473040985,-460.0,0.00023443,2]
[374939884,1753473040994,-850.62,0.00023443,2]
[374939886,1753473041004,-460.0,0.0002346,2]
[374939888,1753473041013,-460.0,0.00023461,2]
[374939890,1753473041022,-460.0,0.00023461,2]
[374939892,1753473041032,-302.03761521,0.00023461,2]
[374939894,1753473041042,-927.54,0.00023703,2]
[374939896,1753473041051,-460.0,0.00023717,2]
[374939898,1753473041062,-850.62,0.00023717,2]
[374939900,1753473041071,-460.0,0.00023734,2]
[374939902,1753473041081,-450.97,0.00023735,2]
[374939904,1753473041090,-225.34962374,0.00023735,2]
[374939906,1753473041104,-1783.96184227,0.00023873,2]
[374939908,1753473041114,-189.60616552,0.00023873,2]
[374939910,1753473041124,-40003.68895823,0.00023904,2]
[374939912,1753473041137,-305.0,0.00023904,2]
[374939959,1753473043311,-456.38939999,0.00019898,2]
[374944144,1753473726915,317.007135,0.00013699,2]
[374944175,1753474232423,-285.57,0.00020051,2]
[374944176,1753474232434,-312.16666667,0.00020138,2]
[374944177,1753474232443,-317.007135,0.00020187,2]
[374944178,1753474232453,-407.0,0.00021678,2]
[374944179,1753474232463,-571.14,0.00021873,2]
[374944180,1753474232475,-564.17619833,0.00021917,2]
[374944181,1753474232487,-323.82380167,0.00021917,2]
[374944182,1753474232497,-300.0,0.00022797,2]
[374944183,1753474232506,-156.17619833,0.00022798,2]
[374944187,1753474238489,-491.82380167,0.00022798,2]
[374944188,1753474238499,-507.10305369,0.00022798,2]
[374944198,1753474240381,-504.30503274,0.00022798,2]
[374944474,1753474243356,-274.67,0.00020039,2]
[374944476,1753474243367,-549.33,0.0002186,2]
[374944478,1753474243377,-720.21028227,0.00022798,2]
[374944492,1753474243514,-425.3816313,0.00022798,2]
[374944494,1753474243524,-158.01289172,0.00022985,2]
[374944496,1753474243534,-393.62265445,0.00022985,2]
[374944498,1753474243546,-429.8269109,0.00022986,2]
[374944500,1753474243557,-429.8269109,0.00022986,2]
[374944502,1753474243567,-429.8269109,0.00022986,2]
[374944505,1753474243577,-429.8269109,0.00022986,2]
[374944507,1753474243587,-429.0671964,0.00022986,2]
[374944509,1753474243597,-239.45,0.00023,2]
[374944511,1753474243606,-4324.0,0.00023,3]
[374944513,1753474243616,-215.0738,0.00023496,2]
[374944515,1753474243625,-3768.08418253,0.000238,4]
[374944758,1753474246395,-611.2830815,0.00023682,2]
[374944760,1753474246419,-212.7169185,0.00023682,2]
[374944762,1753474246429,-4231.91581747,0.000238,4]
[374944764,1753474246441,-321.194,0.00023803,5]
[374944766,1753474246451,-460.0,0.00023803,2]
[374944768,1753474246460,-460.0,0.00023803,2]
[374944770,1753474246473,-1375.67,0.00023803,2]
[374944772,1753474246482,-17614.88087363,0.00023804,2]
[374944774,1753474246494,-582.58705545,0.00023804,2]
[374945634,1753474705338,285.306421,0.00013699,2]
[374945676,1753475432647,-150.0,0.000189,2]
[374945677,1753475432657,-300.0,0.00019898,2]
[374945678,1753475432667,-157.0,0.00019898,2]
[374945679,1753475432678,-460.0,0.00019899,2]
[374945680,1753475432687,-460.0,0.00019899,2]
[374945681,1753475432698,-18811.2112319,0.000199,2]
[374945682,1753475432712,-844.03561565,0.000199,2]
[374945683,1753475432727,-7350.77118127,0.000199,2]
[374945684,1753475432736,-170.3353853,0.000199,2]
[374945686,1753475432746,-269.01872158,0.0002,2]
[374945688,1753475432755,-6664.36303151,0.0002,2]
[374945690,1753475432765,-1178.54252481,0.0002,2]
[374945703,1753475438667,-500.0,0.00019898,2]
[374945704,1753475438677,-500.0,0.00019898,2]
[374945707,1753475438687,-500.0,0.00019898,2]
[374945708,1753475438696,-500.0,0.00019898,2]
[374945710,1753475438706,-500.0,0.00019898,2]
[374945712,1753475438716,-500.0,0.00019898,2]
[374945714,1753475438725,-500.0,0.00019898,2]
[374945716,1753475438735,-500.0,0.00019898,2]
[374945718,1753475438744,-500.0,0.00019898,2]
[374945720,1753475438754,-500.0,0.00019898,2]
[374945721,1753475438764,-449.62924898,0.00019898,2]
[374945724,1753475438773,-500.0,0.00019898,2]
[374945725,1753475438783,-617.66335404,0.00019898,2]
[374945727,1753475438792,-500.0,0.00019898,2]
[374945728,1753475438802,-500.0,0.00019898,2]
[374945729,1753475438815,-500.0,0.00019898,2]
[374945730,1753475438826,-500.0,0.00019898,2]
[374945731,1753475438835,-500.0,0.00019898,2]
[374945732,1753475438845,-500.0,0.00019898,2]
[374945733,1753475438855,-500.0,0.00019898,2]
[374945736,1753475438865,-500.0,0.00019898,2]
[374945738,1753475438874,-504.30855185,0.00019898,2]
[374945739,1753475438884,-500.0,0.00019898,2]
[374945741,1753475438895,-167.21160255,0.00019898,2]
[374945743,1753475438903,-500.0,0.00019898,2]
[374945745,1753475438913,-500.0,0.00019898,2]
[374945747,1753475438922,-50.2255779,0.00019898,2]
[374945778,1753475440768,-104.16122258,0.00019898,2]
[374945779,1753475440778,-500.0,0.00019898,2]
[374945780,1753475440788,-500.0,0.00019898,2]
[374945781,1753475440797,-500.0,0.00019898,2]
[374945782,1753475440808,-500.0,0.00019898,2]
[374945783,1753475440821,-500.0,0.00019898,2]
[374945784,1753475440831,-500.0,0.00019898,2]
[374945786,1753475440933,-902.32115529,0.0002,2]
[374945787,1753475440983,-253.69,0.00020096,2]
[374945788,1753475440994,-460.0,0.00020173,2]
[374945789,1753475441004,-285.306421,0.00020187,2]
[374945790,1753475441014,-460.0,0.00020447,2]
[374945791,1753475441024,-460.0,0.00020721,2]
[374945792,1753475441034,-462.11,0.00020995,2]
[374945793,1753475441044,-327.76565391,0.00021064,2]
[374945794,1753475441054,-312.16666667,0.00021866,2]
[374945795,1753475441063,-160.0,0.00021908,2]
[374945796,1753475441073,-840.4016166,0.00021908,2]
[374945797,1753475441082,-526.33361954,0.00021908,2]
[374945798,1753475441091,-160.0,0.00021909,2]
[374945799,1753475441101,-160.0,0.00021909,2]
[374945800,1753475441110,-231.20877768,0.00021909,2]
[374945801,1753475441120,-215.93003454,0.00021909,2]
[374945802,1753475441130,-160.0,0.00021909,2]
[374945803,1753475441139,-160.0,0.00021909,2]
[374945804,1753475441149,-507.38,0.00021923,2]
[374945805,1753475441159,-173.4409429,0.00022341,2]
[374945806,1753475441169,-429.8269109,0.00022641,2]
[374945807,1753475441178,-460.0,0.00022684,2]
[374945808,1753475441188,-460.0,0.00022685,2]
[374945809,1753475441198,-460.0,0.00022685,2]
[374945810,1753475441207,-460.0,0.00022685,2]
[374945811,1753475441217,-460.0,0.00022685,2]
[374945812,1753475441227,-460.0,0.00022685,2]
[374945813,1753475441236,-460.0,0.00022685,2]
[374945814,1753475441245,-460.0,0.00022685,2]
[374945815,1753475441255,-460.0,0.00022685,2]
[374945816,1753475441265,-460.0,0.00022685,2]
[374945817,1753475441274,-2157.0,0.00022689,2]
[374945818,1753475441283,-407.0,0.00022689,2]
[374945819,1753475441293,-176.097,0.00022689,2]
[374945820,1753475441302,-164.585526,0.0002295,2]
[374945821,1753475441312,-460.0,0.00022959,2]
[374945822,1753475441321,-460.0,0.00022959,2]
[374945823,1753475441331,-460.0,0.00022959,2]
[374945824,1753475441341,-460.0,0.00022959,2]
[374945825,1753475441351,-460.0,0.00022959,2]
[374945826,1753475441360,-460.0,0.00022959,2]
[374945827,1753475441369,-460.0,0.00022959,2]
[374945828,1753475441379,-460.0,0.00022959,2]
[374945829,1753475441388,-460.0,0.00022959,2]
[374945830,1753475441398,-580.0,0.00022981,2]
[374945832,1753475441407,-460.0,0.00022981,2]
[374945833,1753475441417,-460.0,0.00022981,2]
[374945834,1753475441426,-460.0,0.00022981,2]
[374945835,1753475441435,-460.0,0.00022981,2]
[374945836,1753475441445,-460.0,0.00022981,2]
[374945837,1753475441455,-460.0,0.00022981,2]
[374945838,1753475441464,-510.99,0.00022981,2]
[374945839,1753475441474,-460.0,0.00022981,2]
[374945840,1753475441483,-460.0,0.00022981,2]
[374945841,1753475441492,-347.896,0.00022983,2]
[374945842,1753475441502,-460.0,0.00022983,2]
[374945843,1753475441511,-626.87,0.00022983,2]
[374945844,1753475441521,-460.0,0.00022983,2]
[374945845,1753475441530,-460.0,0.00022983,2]
[374945846,1753475441540,-460.0,0.00022983,2]
[374945847,1753475441550,-460.0,0.00022983,2]
[374945848,1753475441560,-215.5,0.00023,2]
[374945849,1753475441569,-164.585526,0.00023004,3]
[374945850,1753475441579,-164.585526,0.0002301,6]
[374945851,1753475441588,-429.8269109,0.00023041,2]
[374945852,1753475441597,-159.9205653,0.00023178,2]
[374945853,1753475441607,-178.2325116,0.00023178,2]
[374945854,1753475441616,-460.0,0.00023233,2]
[374945855,1753475441626,-460.0,0.00023233,2]
[374945856,1753475441635,-460.0,0.00023233,2]
[374945857,1753475441645,-460.0,0.00023233,2]
[374945858,1753475441655,-460.0,0.00023233,2]
[374945859,1753475441664,-460.0,0.00023233,2]
[374945860,1753475441674,-460.0,0.00023233,2]
[374945861,1753475441683,-460.0,0.00023255,2]
[374945862,1753475441693,-460.0,0.00023255,2]
[374945863,1753475441703,-460.0,0.00023255,2]
[374945864,1753475441713,-460.0,0.00023255,2]
[374945865,1753475441723,-460.0,0.00023255,2]
[374945866,1753475441732,-460.0,0.00023255,2]
[374945867,1753475441742,-460.0,0.00023255,2]
[374945868,1753475441752,-460.0,0.00023255,2]
[374945869,1753475441761,-626.87,0.00023256,2]
[374945870,1753475441771,-460.0,0.00023256,2]
[374945871,1753475441780,-460.0,0.00023256,2]
[374945872,1753475441789,-460.0,0.00023256,2]
[374945873,1753475441799,-460.0,0.00023256,2]
[374945874,1753475441808,-2705.93,0.00023476,10]
[374945875,1753475441821,-4633.54,0.00023486,10]
[374945876,1753475441832,-3861.28,0.00023486,10]
[374945877,1753475441841,-151.0,0.00023496,2]
[374945878,1753475441851,-151.0,0.00023496,2]
[374945879,1753475441862,-151.0,0.00023496,2]
[374945880,1753475441872,-151.0,0.00023496,2]
[374945881,1753475441882,-151.0,0.00023496,2]
[374945882,1753475441893,-151.0,0.00023496,2]
[374945883,1753475441903,-151.0,0.00023496,2]
[374945884,1753475441913,-151.0,0.00023496,2]
[374945885,1753475441922,-151.0,0.00023496,2]
[374945886,1753475441932,-215.0738,0.00023496,2]
[374945887,1753475441942,-3801.642,0.00023496,2]
[374945888,1753475441951,-151.0,0.00023496,2]
[374945889,1753475441960,-151.0,0.00023496,2]
[374945890,1753475441971,-151.0,0.00023496,2]
[374945891,1753475441980,-151.0,0.00023496,2]
[374945892,1753475441990,-151.0,0.00023496,2]
[374945893,1753475441999,-151.0,0.00023496,2]
[374945894,1753475442009,-151.0,0.00023496,2]
[374945895,1753475442019,-151.0,0.00023496,2]
[374945896,1753475442028,-151.0,0.00023496,2]
[374945897,1753475442038,-151.0,0.00023496,2]
[374945898,1753475442048,-151.0,0.00023496,2]
[374945899,1753475442057,-151.0,0.00023496,2]
[374945900,1753475442067,-8326.83511787,0.00023496,2]
[374945901,1753475442077,-460.0,0.00023507,2]
[374945902,1753475442087,-460.0,0.00023507,2]
[374945903,1753475442096,-460.0,0.00023507,2]
[374945904,1753475442106,-498.96,0.00023507,2]
[374945905,1753475442116,-579.29,0.00023507,2]
[374945906,1753475442125,-460.0,0.00023507,2]
[374945907,1753475442135,-460.0,0.00023507,2]
[374945908,1753475442144,-460.0,0.00023529,2]
[374945909,1753475442153,-460.0,0.00023529,2]
[374945910,1753475442163,-460.0,0.00023529,2]
[374945911,1753475442172,-460.0,0.00023529,2]
[374945912,1753475442182,-460.0,0.00023529,2]
[374945913,1753475442192,-460.0,0.00023529,2]
[374945914,1753475442202,-626.87,0.0002353,2]
[374945915,1753475442210,-460.0,0.0002353,2]
[374945916,1753475442218,-460.0,0.0002353,2]
[374945917,1753475442224,-460.0,0.0002353,2]
[374945918,1753475442232,-460.0,0.0002353,2]
[374945919,1753475442240,-184.74055918,0.00023551,2]
[374945920,1753475442248,-153.0,0.00023671,2]
[374945921,1753475442255,-3217.73,0.00023684,10]
[374945922,1753475442263,-29632.70741768,0.00023694,2]
[374945925,1753475443575,-160.0,0.00021908,2]
[374945926,1753475443585,-7883.68290343,0.00023694,2]
[374945927,1753475443633,-8403.23066927,0.00023694,2]
[374945928,1753475443645,-2732.07325995,0.00023694,2]
[374945929,1753475443696,-3085.43247804,0.00023694,2]
[374945930,1753475443705,-460.0,0.00023732,2]
[374945931,1753475443715,-460.0,0.00023732,2]
[374945932,1753475443724,-460.0,0.00023732,2]
[374945933,1753475443733,-460.0,0.00023732,2]
[374945934,1753475443744,-336.74418746,0.00023732,2]